fUST/lending_fUST_20241201
["ID","MTS","AMOUNT","RATE_DAILY","PERIOD"]
[343913737,1733056254509,-500.0,0.00027671,3]
[343913738,1733056254518,-500.0,0.00027671,3]
[343913739,1733056254527,-620.34,0.00027671,3]
[343913740,1733056254537,-500.0,0.00027671,3]
[343913741,1733056254546,-500.0,0.00027671,3]
[343913742,1733056254556,-500.0,0.00027671,3]
[343913743,1733056254565,-500.0,0.00027671,3]
[343913744,1733056254575,-500.0,0.00027671,3]
[343913745,1733056254585,-500.0,0.00027671,3]
[343913746,1733056254594,-500.0,0.00027671,3]
[343913747,1733056254603,-500.0,0.00027671,3]
[343913748,1733056254613,-500.0,0.00027671,3]
[343913749,1733056254623,-500.0,0.00027671,3]
[343913750,1733056254632,-505.4781761,0.00027671,3]
[343913751,1733056254641,-258.75655445,0.00027671,3]
[343913752,1733056254651,-500.0,0.00027671,3]
[343913753,1733056254661,-505.20471726,0.00027671,3]
[343913754,1733056254670,-545.19,0.00027671,3]
[343913755,1733056254679,-500.0,0.00027671,3]
[343913756,1733056254688,-502.48704359,0.00027671,3]
[343913757,1733056254698,-506.95810338,0.00027671,3]
[343913758,1733056254707,-500.0,0.00027671,3]
[343913759,1733056254716,-500.0,0.00027671,3]
[343913760,1733056254726,-500.0,0.00027671,3]
[343913761,1733056254735,-541.62838906,0.00027671,3]
[343913762,1733056254745,-500.0,0.00027671,3]
[343913763,1733056254755,-508.3976661,0.00027671,3]
[343913764,1733056254764,-500.0,0.00027671,3]
[343913765,1733056254774,-505.66880864,0.00027671,3]
[343913766,1733056254782,-500.0,0.00027671,3]
[343913767,1733056254792,-298.49137594,0.00027671,3]
[343913768,1733056254801,-500.0,0.00027671,3]
[343913769,1733056254811,-552.58813424,0.00027671,3]
[343913770,1733056254821,-500.0,0.00027671,3]
[343913771,1733056254831,-500.0,0.00027671,3]
[343913772,1733056254840,-504.03288535,0.00027671,3]
[343913773,1733056254850,-579.66,0.00027671,3]
[343913774,1733056254859,-500.0,0.00027671,3]
[343913775,1733056254869,-500.0,0.00027671,3]
[343913776,1733056254879,-500.0,0.00027671,3]
[343913777,1733056254889,-500.0,0.00027671,3]
[343913778,1733056254899,-502.60299538,0.00027671,3]
[343913779,1733056254909,-500.0,0.00027671,3]
[343913780,1733056254919,-493.7666082,0.00027671,3]
[343913781,1733056254929,-411.71911596,0.00027671,3]
[343913782,1733056254941,-864.54,0.00027671,3]
[343913783,1733056254951,-500.0,0.00027671,3]
[343913784,1733056254960,-507.68509206,0.00027671,3]
[343913785,1733056254969,-734.46,0.00027671,3]
[343913786,1733056254979,-500.0,0.00027671,3]
[343913787,1733056254989,-500.0,0.00027671,3]
[343913788,1733056255000,-1500.0,0.00027671,2]
[343913789,1733056255010,-500.0,0.00027671,3]
[343913790,1733056255019,-500.0,0.00027671,2]
[343913791,1733056255029,-544.1,0.00027671,3]
[343913792,1733056255039,-518.43,0.00027671,3]
[343913793,1733056255107,-500.69245656,0.00027671,3]
[343913794,1733056255118,-229.20800725,0.00027671,3]
[343913795,1733056255127,-500.0,0.00027671,3]
[343913796,1733056255137,-500.0,0.00027671,3]
[343913797,1733056255146,-506.42959947,0.00027671,3]
[343913798,1733056255156,-500.0,0.00027671,3]
[343913799,1733056255165,-500.0,0.00027671,3]
[343913800,1733056255175,-500.0,0.00027671,3]
[343913801,1733056255184,-593.8,0.00027671,3]
[343913802,1733056255193,-500.0,0.00027671,3]
[343913803,1733056255203,-500.0,0.00027671,3]
[343913804,1733056255212,-46213.25,0.00027671,3]
[343913805,1733056255222,-415.42562532,0.00027671,3]
[343913806,1733056255232,-500.0,0.00027671,3]
[343913807,1733056255242,-500.0,0.00027671,3]
[343913808,1733056255254,-514.6111105,0.00027671,3]
[343913809,1733056255264,-418.170591,0.00027671,7]
[343913810,1733056255273,-418.170593,0.00027671,7]
[343913811,1733056255284,-500.0,0.00027671,3]
[343913812,1733056255294,-521.78797931,0.00027671,3]
[343913813,1733056255304,-500.0,0.00027671,3]
[343913814,1733056255313,-500.0,0.00027671,3]
[343913815,1733056255323,-413.74980169,0.00027671,3]
[343913816,1733056255335,-500.0,0.00027671,3]
[343913817,1733056255345,-500.0,0.00027671,3]
[343913818,1733056255354,-632.15,0.00027671,3]
[343913819,1733056255365,-500.0,0.00027671,3]
[343913820,1733056255374,-510.47498433,0.00027671,3]
[343913821,1733056255383,-500.0,0.00027671,3]
[343913822,1733056255393,-203.81553671,0.00027671,3]
[343913823,1733056255403,-500.0,0.00027671,3]
[343913824,1733056255412,-500.0,0.00027671,3]
[343913825,1733056255421,-500.0,0.00027671,3]
[343913826,1733056255431,-500.0,0.00027671,3]
[343913827,1733056255440,-500.0,0.00027671,3]
[343913828,1733056255451,-500.0,0.00027671,3]
[343913829,1733056255461,-500.0,0.00027671,3]
[343913830,1733056255471,-557.0,0.00027671,3]
[343913831,1733056255481,-510.05581155,0.00027671,3]
[343913832,1733056255490,-500.0,0.00027671,3]
[343913833,1733056255500,-226.4784627,0.00027671,3]
[343913834,1733056255510,-500.0,0.00027671,3]
[343913835,1733056255520,-500.0,0.00027671,3]
[343913836,1733056255529,-500.0,0.00027671,3]
[343913837,1733056255539,-500.0,0.00027671,3]
[343913838,1733056255549,-500.0,0.00027671,3]
[343913839,1733056255559,-500.0,0.00027671,2]
[343913840,1733056255569,-512.70060983,0.00027671,3]
[343913841,1733056255579,-500.0,0.00027671,3]
[343913842,1733056255589,-577.52417291,0.00027671,3]
[343913843,1733056255599,-363.00059444,0.00027671,3]
[343913844,1733056255609,-514.06485762,0.00027671,3]
[343913845,1733056255619,-500.0,0.00027671,3]
[343913846,1733056255628,-500.0,0.00027671,3]
[343913847,1733056255638,-500.0,0.00027671,3]
[343913848,1733056255647,-500.0,0.00027671,3]
[343913849,1733056255658,-500.51535839,0.00027673,5]
[343913850,1733056255668,-500.31221398,0.00027673,5]
[343913851,1733056255677,-18305.15373896,0.000277,2]
[343913852,1733056255687,-2100.82881903,0.000277,2]
[343913853,1733056255696,-2100.82881903,0.000277,2]
[343913854,1733056255706,-2100.82881903,0.000277,2]
[343913855,1733056255716,-2100.82881903,0.000277,2]
[343913856,1733056255726,-244.252344,0.00027765,2]
[343913857,1733056255737,-152.657715,0.00027879,2]
[343913858,1733056255746,-1399.20669491,0.0002789,2]
[343913859,1733056255758,-545.14,0.000279,31]
[343913860,1733056255768,-545.14,0.000279,31]
[343913861,1733056255778,-545.14,0.000279,31]
[343913862,1733056255789,-545.14,0.000279,31]
[343913863,1733056255799,-545.14,0.000279,31]
[343913864,1733056255809,-545.14,0.000279,31]
[343913865,1733056255819,-545.14,0.000279,31]
[343913866,1733056255829,-545.14,0.000279,31]
[343913867,1733056255839,-545.14,0.000279,31]
[343913868,1733056255848,-545.14,0.000279,31]
[343913869,1733056255858,-545.14,0.000279,31]
[343913870,1733056255867,-545.14,0.000279,31]
[343913871,1733056255876,-500.59821909,0.00027921,5]
[343913872,1733056255886,-500.78297066,0.00027921,5]
[343913873,1733056255895,-1001.60256733,0.00027921,5]
[343913874,1733056255905,-200.93312901,0.00027945,7]
[343913875,1733056255915,-199.90210638,0.00027945,7]
[343913876,1733056255924,-155.05304325,0.00027945,7]
[343913877,1733056255934,-150.25123608,0.00027945,7]
[343913878,1733056255943,-200.51863597,0.00027945,7]
[343913879,1733056255953,-151.22293977,0.00027945,7]
[343913880,1733056255963,-200.40782584,0.00027945,7]
[343913881,1733056255971,-500.0,0.00027945,7]
[343913882,1733056256034,-150.2,0.00027945,7]
[343913883,1733056256044,-202.91234004,0.00027945,7]
[343913884,1733056256054,-200.64749887,0.00027945,7]
[343913885,1733056256064,-201.56732399,0.00027945,7]
[343913886,1733056256073,-500.0,0.00027945,3]
[343913887,1733056256083,-524.65465698,0.00027945,3]
[343913888,1733056256092,-1112.22,0.00027945,3]
[343913889,1733056256101,-508.39155695,0.00027945,3]
[343913890,1733056256111,-500.0,0.00027945,3]
[343913891,1733056256122,-500.0,0.00027945,3]
[343913892,1733056256131,-500.0,0.00027945,3]
[343913893,1733056256141,-500.0,0.00027945,3]
[343913894,1733056256151,-500.0,0.00027945,3]
[343913895,1733056256160,-500.0,0.00027945,3]
[343913896,1733056256170,-500.0,0.00027945,3]
[343913897,1733056256180,-500.0,0.00027945,3]
[343913898,1733056256189,-500.0,0.00027945,3]
[343913899,1733056256199,-500.0,0.00027945,3]
[343913900,1733056256208,-500.0,0.00027945,3]
[343913901,1733056256218,-517.06998208,0.00027945,3]
[343913902,1733056256228,-500.0,0.00027945,3]
[343913903,1733056256237,-500.0,0.00027945,3]
[343913904,1733056256248,-500.0,0.00027945,3]
[343913905,1733056256263,-500.0,0.00027945,3]
[343913906,1733056256272,-500.0,0.00027945,3]
[343913907,1733056256282,-508.54825314,0.00027945,3]
[343913908,1733056256294,-501.96945509,0.00027945,3]
[343913909,1733056256303,-500.0,0.00027945,3]
[343913910,1733056256313,-500.0,0.00027945,3]
[343913911,1733056256323,-512.52911799,0.00027945,3]
[343913912,1733056256334,-500.0,0.00027945,3]
[343913913,1733056256343,-505.6456852,0.00027945,3]
[343913914,1733056256353,-509.94379566,0.00027945,3]
[343913915,1733056256362,-561.91980207,0.00027945,3]
[343913916,1733056256372,-500.0,0.00027945,3]
[343913917,1733056256381,-360.78527396,0.00027945,3]
[343913918,1733056256391,-500.0,0.00027945,3]
[343913919,1733056256400,-500.0,0.00027945,3]
[343913920,1733056256410,-500.0,0.00027945,3]
[343913921,1733056256419,-500.0,0.00027945,3]
[343913922,1733056256429,-500.0,0.00027945,3]
[343913923,1733056256442,-505.58095975,0.00027945,3]
[343913924,1733056256465,-473.12962588,0.00027945,3]
[343913925,1733056256483,-518.96405474,0.00027945,3]
[343913926,1733056256506,-500.0,0.00027945,3]
[343913927,1733056256527,-500.0,0.00027945,3]
[343913928,1733056256545,-500.0,0.00027945,3]
[343913929,1733056256565,-500.0,0.00027945,3]
[343913930,1733056256580,-500.0,0.00027945,3]
[343913931,1733056256600,-510.03544679,0.00027945,3]
[343913932,1733056256620,-500.0,0.00027945,3]
[343913933,1733056256637,-579.74381915,0.00027945,3]
[343913936,1733056907434,158.669844,0.00013973,2]
[343913959,1733057230137,-150.3,0.0002,2]
[343913962,1733057358120,-1018.97083333,0.0002,2]
[343913963,1733057358147,-1169.27083333,0.0002,2]
[343913964,1733057358167,-110.71312244,0.00024224,2]
[343913999,1733057438264,-1169.27083333,0.0002,2]
[343914000,1733057438275,-47.95672156,0.00024224,2]
[343914001,1733057438284,-300.0,0.00027077,2]
[343914002,1733057438293,-300.0,0.00027077,2]
[343914003,1733057438302,-150.0,0.00027078,2]
[343914004,1733057438312,-531.0,0.00027078,2]
[343914005,1733057438321,-2377.0,0.00027078,2]
[343914006,1733057438331,-1177.923,0.00027078,2]
[343914007,1733057438342,-666.0,0.00027297,2]
[343914008,1733057438352,-1012.84991163,0.00027297,2]
[343914009,1733057438361,-309.0,0.000273,2]
[343914010,1733057438371,-191.68,0.00027387,3]
[343914012,1733057438380,-500.0,0.00027396,2]
[343914013,1733057438390,-500.0,0.00027396,2]
[343914014,1733057438400,-308.19443868,0.00027396,2]
[343914015,1733057438410,-272.23543589,0.00027396,2]
[343914016,1733057438419,-430.48284041,0.00027396,2]
[343914017,1733057438428,-500.0,0.00027396,2]
[343914018,1733057438438,-383.24618344,0.00027396,2]
[343914019,1733057438447,-500.0,0.00027396,2]
[343914020,1733057438457,-186.14181869,0.00027396,2]
[343914021,1733057438466,-202.11392539,0.00027397,2]
[343914022,1733057438476,-500.0,0.00027397,3]
[343914023,1733057438485,-279.55595572,0.00027397,3]
[343914024,1733057438494,-538.42015273,0.00027397,3]
[343914025,1733057438504,-206.92878253,0.00027397,3]
[343914026,1733057438517,-293.07121747,0.00027397,3]
[343914027,1733057438526,-500.0,0.00027397,3]
[343914028,1733057438536,-206.24404291,0.00027397,3]
[343914045,1733057443374,-293.75595709,0.00027397,3]
[343914046,1733057443386,-349.6560111,0.00027397,3]
[343914047,1733057443395,-500.0,0.00027397,3]
[343914048,1733057443405,-500.0,0.00027397,3]
[343914049,1733057443415,-500.0,0.00027397,3]
[343914050,1733057443424,-500.0,0.00027397,3]
[343914051,1733057443434,-557.57,0.00027397,3]
[343914052,1733057443444,-500.0,0.00027397,3]
[343914053,1733057443453,-554.20741979,0.00027397,3]
[343914054,1733057443462,-530.83082706,0.00027397,3]
[343914055,1733057443473,-500.0,0.00027397,3]
[343914056,1733057443483,-518.04520736,0.00027397,3]
[343914057,1733057443493,-500.0,0.00027397,3]
[343914058,1733057443503,-438.47243988,0.00027397,3]
[343914059,1733057443513,-181.35688916,0.00027397,3]
[343914060,1733057443525,-318.64311084,0.00027397,3]
[343914061,1733057443534,-500.0,0.00027397,3]
[343914062,1733057443544,-500.0,0.00027397,3]
[343914064,1733057443553,-136.22284065,0.00027397,3]
[343914065,1733057443564,-363.77715935,0.00027397,3]
[343914066,1733057443574,-500.0,0.00027397,3]
[343914067,1733057443584,-500.0,0.00027397,3]
[343914068,1733057443593,-500.0,0.00027397,3]
[343914069,1733057443603,-500.0,0.00027397,3]
[343914070,1733057443613,-500.0,0.00027397,3]
[343914071,1733057443625,-545.81943234,0.00027397,3]
[343914072,1733057443635,-500.0,0.00027397,3]
[343914073,1733057443644,-500.0,0.00027397,3]
[343914074,1733057443655,-500.0,0.00027397,3]
[343914075,1733057443666,-500.0,0.00027397,3]
[343914076,1733057443676,-500.0,0.00027397,3]
[343914077,1733057443688,-500.0,0.00027397,3]
[343914078,1733057443698,-500.0,0.00027397,3]
[343914079,1733057443708,-500.0,0.00027397,3]
[343914080,1733057443718,-500.0,0.00027397,3]
[343914081,1733057443727,-340.73376883,0.00027397,3]
[343914082,1733057443736,-505.00088861,0.00027397,3]
[343914083,1733057443745,-500.0,0.00027397,3]
[343914084,1733057443756,-500.0,0.00027397,3]
[343914085,1733057443765,-500.0,0.00027397,3]
[343914086,1733057443774,-500.0,0.00027397,3]
[343914087,1733057443783,-1267.84,0.00027397,3]
[343914088,1733057443792,-520.57417594,0.00027397,3]
[343914089,1733057443801,-500.0,0.00027397,3]
[343914090,1733057443811,-240.32287367,0.00027397,3]
[343914091,1733057443820,-500.0,0.00027397,3]
[343914092,1733057443829,-500.0,0.00027397,3]
[343914093,1733057443839,-431.71719479,0.00027397,3]
[343914094,1733057443849,-500.0,0.00027397,3]
[343914095,1733057443858,-500.0,0.00027397,3]
[343914096,1733057443868,-500.0,0.00027397,3]
[343914097,1733057443877,-500.0,0.00027397,3]
[343914098,1733057443887,-500.0,0.00027397,3]
[343914099,1733057443896,-500.0,0.00027397,3]
[343914100,1733057443905,-500.0,0.00027397,3]
[343914101,1733057443915,-568.65,0.00027397,3]
[343914102,1733057443931,-500.0,0.00027397,3]
[343914103,1733057443940,-500.0,0.00027397,3]
[343914104,1733057443950,-500.0,0.00027397,3]
[343914105,1733057443959,-500.0,0.00027397,3]
[343914106,1733057443968,-500.0,0.00027397,3]
[343914107,1733057443978,-539.41640373,0.00027397,3]
[343914108,1733057443987,-434.82773007,0.00027397,3]
[343914109,1733057443996,-574.1119942,0.00027397,3]
[343914110,1733057444014,-500.0,0.00027397,3]
[343914111,1733057444023,-500.0,0.00027397,3]
[343914112,1733057444032,-500.0,0.00027397,3]
[343914113,1733057444041,-242.0107271,0.00027397,3]
[343914114,1733057444050,-500.0,0.00027397,3]
[343914115,1733057444059,-500.0,0.00027397,3]
[343914116,1733057444068,-500.0,0.00027397,3]
[343914117,1733057444077,-495.71835337,0.00027397,3]
[343914118,1733057444087,-516.22888079,0.00027397,3]
[343914119,1733057444097,-500.0,0.00027397,3]
[343914120,1733057444107,-500.0,0.00027397,3]
[343914121,1733057444116,-500.0,0.00027397,3]
[343914122,1733057444126,-500.0,0.00027397,3]
[343914123,1733057444136,-589.66,0.00027397,3]
[343914124,1733057444145,-500.0,0.00027397,3]
[343914125,1733057444155,-500.0,0.00027397,3]
[343914126,1733057444164,-500.0,0.00027397,3]
[343914127,1733057444173,-500.0,0.00027397,3]
[343914128,1733057444183,-500.0,0.00027397,3]
[343914129,1733057444192,-554.49230796,0.00027397,3]
[343914130,1733057444200,-411.8181777,0.00027397,3]
[343914131,1733057444210,-580.46127643,0.00027397,3]
[343914132,1733057444219,-500.0,0.00027397,3]
[343914133,1733057444228,-500.0,0.00027397,3]
[343914134,1733057444326,-500.0,0.00027397,3]
[343914135,1733057444335,-531.35,0.00027397,3]
[343914136,1733057444344,-500.0,0.00027397,3]
[343914137,1733057444353,-508.24,0.00027397,3]
[343914138,1733057444363,-518.71564337,0.00027397,3]
[343914139,1733057444372,-500.0,0.00027397,3]
[343914140,1733057444381,-500.0,0.00027397,3]
[343914141,1733057444390,-571.83,0.00027397,3]
[343914142,1733057444399,-973.19,0.00027397,3]
[343914143,1733057444408,-500.0,0.00027397,3]
[343914144,1733057444417,-500.0,0.00027397,3]
[343914145,1733057444426,-500.0,0.00027397,3]
[343914146,1733057444435,-575.85533055,0.00027397,3]
[343914147,1733057444444,-503.61027085,0.00027397,3]
[343914148,1733057444454,-511.08603335,0.00027397,3]
[343914149,1733057444463,-500.0,0.00027397,3]
[343914150,1733057444473,-500.0,0.00027397,3]
[343914151,1733057444483,-540.21113922,0.00027397,3]
[343914152,1733057444492,-500.0,0.00027397,3]
[343914153,1733057444504,-500.0,0.00027397,3]
[343914154,1733057444514,-560.72,0.00027397,3]
[343914155,1733057444523,-500.0,0.00027397,3]
[343914156,1733057444533,-605.82,0.00027397,3]
[343914157,1733057444543,-850.06,0.00027397,3]
[343914158,1733057444552,-500.0,0.00027397,3]
[343914159,1733057444562,-500.0,0.00027397,3]
[343914160,1733057444572,-500.0,0.00027397,3]
[343914161,1733057444581,-500.0,0.00027397,3]
[343914162,1733057444591,-388.13153747,0.00027397,3]
[343914163,1733057444600,-500.0,0.00027397,3]
[343914164,1733057444611,-505.4984902,0.00027397,3]
[343914165,1733057444626,-500.0,0.00027397,3]
[343914166,1733057444635,-500.0,0.00027397,3]
[343914167,1733057444645,-500.0,0.00027397,3]
[343914168,1733057444655,-500.0,0.00027397,3]
[343914169,1733057444664,-500.0,0.00027397,3]
[343914170,1733057444673,-500.0,0.00027397,3]
[343914171,1733057444683,-500.0,0.00027397,3]
[343914172,1733057444692,-500.0,0.00027397,3]
[343914173,1733057444701,-500.0,0.00027397,3]
[343914174,1733057444711,-500.0,0.00027397,3]
[343914175,1733057444720,-868.9292748,0.00027397,5]
[343914176,1733057444730,-500.0,0.00027397,3]
[343914177,1733057444739,-500.0,0.00027397,3]
[343914178,1733057444751,-508.4456035,0.00027397,3]
[343914179,1733057444760,-931.98,0.00027397,3]
[343914180,1733057444769,-500.0,0.00027397,3]
[343914181,1733057444778,-500.0,0.00027397,3]
[343914182,1733057444787,-500.0,0.00027397,3]
[343914183,1733057444796,-726.01,0.00027397,3]
[343914184,1733057444805,-1077.88,0.00027397,3]
[343914185,1733057444815,-500.0,0.00027397,3]
[343914186,1733057444824,-500.0,0.00027397,3]
[343914187,1733057444833,-514.09021941,0.00027397,3]
[343914188,1733057444843,-412.42605149,0.00027397,3]
[343914189,1733057444852,-271.61348649,0.00027397,3]
[343914190,1733057444861,-506.91,0.00027397,3]
[343914191,1733057444870,-500.0,0.00027397,3]
[343914192,1733057444879,-500.0,0.00027397,3]
[343914193,1733057444888,-500.0,0.00027397,3]
[343914194,1733057444897,-500.0,0.00027397,3]
[343914195,1733057444907,-500.0,0.00027397,3]
[343914196,1733057444916,-208.75901506,0.00027397,3]
[343914197,1733057444925,-500.0,0.00027397,3]
[343914198,1733057444935,-504.46274738,0.00027397,3]
[343914199,1733057444944,-527.50007082,0.00027397,3]
[343914200,1733057444953,-500.0,0.00027397,3]
[343914201,1733057444963,-500.0,0.00027397,3]
[343914202,1733057444972,-475.94352366,0.00027397,3]
[343914203,1733057444981,-500.0,0.00027397,3]
[343914204,1733057444990,-500.0,0.00027397,3]
[343914205,1733057445000,-183.24572941,0.00027397,3]
[343914206,1733057445010,-500.0,0.00027397,3]
[343914207,1733057445019,-500.0,0.00027397,3]
[343914208,1733057445029,-339.48794956,0.00027397,3]
[343914209,1733057445038,-500.0,0.00027397,3]
[343914210,1733057445048,-500.0,0.00027397,3]
[343914211,1733057445057,-500.0,0.00027397,3]
[343914212,1733057445067,-500.0,0.00027397,3]
[343914213,1733057445078,-500.0,0.00027397,2]
[343914214,1733057445089,-500.0,0.00027397,3]
[343914215,1733057445099,-500.0,0.00027397,3]
[343914216,1733057445108,-500.0,0.00027397,3]
[343914217,1733057445119,-500.0,0.00027397,3]
[343914218,1733057445128,-506.24473895,0.00027397,3]
[343914219,1733057445138,-500.0,0.00027397,3]
[343914220,1733057445148,-500.0,0.00027397,3]
[343914221,1733057445157,-500.0,0.00027397,3]
[343914222,1733057445167,-500.0,0.00027397,3]
[343914223,1733057445176,-792.5,0.00027397,3]
[343914224,1733057445185,-500.0,0.00027397,3]
[343914225,1733057445194,-500.0,0.00027397,3]
[343914226,1733057445204,-500.0,0.00027397,3]
[343914227,1733057445213,-529.63191898,0.00027397,3]
[343914228,1733057445222,-500.0,0.00027397,3]
[343914229,1733057445231,-500.0,0.00027397,3]
[343914230,1733057445240,-500.0,0.00027397,3]
[343914231,1733057445250,-500.0,0.00027397,3]
[343914232,1733057445259,-222.33859838,0.00027397,3]
[343914233,1733057445269,-533.06282274,0.00027397,3]
[343914234,1733057445278,-500.0,0.00027397,3]
[343914235,1733057445288,-673.25,0.00027397,3]
[343914236,1733057445298,-500.0,0.00027397,3]
[343914237,1733057445307,-42362.14,0.00027397,3]
[343914238,1733057445316,-500.0,0.00027397,3]
[343914239,1733057445326,-500.0,0.00027397,3]
[343914240,1733057445335,-500.0,0.00027397,3]
[343914241,1733057445344,-323.66398931,0.00027397,3]
[343914242,1733057445354,-509.42899791,0.00027397,3]
[343914243,1733057445363,-500.0,0.00027397,3]
[343914244,1733057445372,-500.0,0.00027397,3]
[343914245,1733057445381,-500.0,0.00027397,3]
[343914246,1733057445390,-500.0,0.00027397,3]
[343914247,1733057445399,-500.0,0.00027397,3]
[343914248,1733057445408,-500.0,0.00027397,3]
[343914249,1733057445418,-354.69,0.00027397,2]
[343914250,1733057445427,-224.69966137,0.00027397,3]
[343914251,1733057445436,-500.0,0.00027397,3]
[343914252,1733057445446,-500.0,0.00027397,3]
[343914253,1733057445455,-500.0,0.00027397,3]
[343914254,1733057445464,-509.56680586,0.00027397,3]
[343914255,1733057445473,-500.0,0.00027397,3]
[343914256,1733057445483,-500.0,0.00027397,3]
[343914257,1733057445492,-594.42,0.00027397,3]
[343914258,1733057445503,-500.0,0.00027397,3]
[343914259,1733057445513,-500.0,0.00027397,3]
[343914260,1733057445522,-500.0,0.00027397,3]
[343914261,1733057445532,-500.0,0.00027397,3]
[343914262,1733057445541,-500.0,0.00027397,3]
[343914263,1733057445551,-500.0,0.00027397,3]
[343914264,1733057445560,-500.0,0.00027397,3]
[343914265,1733057445570,-315.58,0.00027397,3]
[343914266,1733057445579,-579.47,0.00027397,3]
[343914267,1733057445588,-500.0,0.00027397,3]
[343914268,1733057445597,-990.72,0.00027397,3]
[343914269,1733057445607,-500.0,0.00027397,3]
[343914270,1733057445619,-500.0,0.00027397,3]
[343914272,1733057445629,-500.0,0.00027397,3]
[343914275,1733057445639,-515.28252766,0.00027397,3]
[343914276,1733057445648,-500.0,0.00027397,3]
[343914277,1733057445659,-506.69589701,0.00027397,3]
[343914278,1733057445668,-500.0,0.00027397,3]
[343914279,1733057445677,-208.65918451,0.00027397,3]
[343914280,1733057445687,-506.13706304,0.00027397,3]
[343914284,1733057445698,-500.0,0.00027397,3]
[343914286,1733057445708,-500.0,0.00027397,3]
[343914288,1733057445717,-500.0,0.00027397,3]
[343914290,1733057445727,-506.78851728,0.00027397,3]
[343914292,1733057445736,-500.0,0.00027397,3]
[343914294,1733057445745,-473.18928205,0.00027397,3]
[343914297,1733057445757,-500.0,0.00027397,3]
[343914299,1733057445766,-500.0,0.00027397,3]
[343914301,1733057445776,-500.0,0.00027397,3]
[343914303,1733057445786,-1169.27083333,0.00027397,3]
[343914306,1733057445795,-1169.27083333,0.00027397,3]
[343914309,1733057445805,-1169.27083333,0.00027397,3]
[343914311,1733057445815,-601.53563775,0.00027397,3]
[343914313,1733057445825,-200.0,0.00027397,3]
[343914315,1733057445836,-500.0,0.00027397,3]
[343914317,1733057445846,-500.0,0.00027397,3]
[343914319,1733057445855,-500.0,0.00027397,3]
[343914321,1733057445865,-500.0,0.00027397,3]
[343914323,1733057445874,-500.0,0.00027397,3]
[343914325,1733057445884,-500.0,0.00027397,3]
[343914327,1733057445893,-500.0,0.00027397,3]
[343914329,1733057445904,-500.0,0.00027397,3]
[343914331,1733057445914,-500.0,0.00027397,3]
[343914333,1733057445924,-500.0,0.00027397,3]
[343914335,1733057445934,-500.0,0.00027397,3]
[343914336,1733057445943,-500.0,0.00027397,3]
[343914337,1733057445953,-500.0,0.00027397,3]
[343914338,1733057445961,-500.0,0.00027397,3]
[343914339,1733057445971,-500.0,0.00027397,3]
[343914340,1733057445980,-500.0,0.00027397,3]
[343914341,1733057445990,-500.0,0.00027397,3]
[343914342,1733057446001,-228.39170788,0.00027397,3]
[343914343,1733057446010,-500.0,0.00027397,3]
[343914344,1733057446019,-500.0,0.00027397,3]
[343914345,1733057446028,-500.0,0.00027397,2]
[343914346,1733057446038,-158.12,0.00027397,3]
[343914347,1733057446047,-500.0,0.00027397,3]